fUST/lending_fUST_20240829
["ID","MTS","AMOUNT","RATE_DAILY","PERIOD"]
[336471166,1724861483084,-500.0,0.00021297,2]
[336471167,1724861483094,-1188.18,0.00021297,2]
[336471168,1724861483104,-1477.27,0.00021297,2]
[336471169,1724861483114,-248.89378136,0.00021297,2]
[336471170,1724861483124,-500.0,0.00021297,2]
[336471171,1724861483139,-169.53128518,0.00021297,2]
[336471172,1724861483149,-500.0,0.00021297,2]
[336471173,1724861483159,-500.0,0.00021297,2]
[336471174,1724861483171,-1202.37,0.00021297,2]
[336471175,1724861483181,-500.0,0.00021298,2]
[336471176,1724861483191,-500.0,0.00021298,2]
[336471177,1724861483201,-332.35355716,0.00021298,2]
[336471178,1724861483215,-500.0,0.00021298,2]
[336471179,1724861483226,-525.42,0.00021298,2]
[336471180,1724861483236,-500.0,0.00021298,2]
[336471181,1724861483247,-500.0,0.00021298,2]
[336471182,1724861483257,-500.0,0.00021298,2]
[336471183,1724861483273,-240.18283585,0.00021298,2]
[336471184,1724861483286,-500.0,0.00021298,2]
[336471185,1724861483296,-500.0,0.00021298,2]
[336471186,1724861483306,-823.28,0.00021298,2]
[336471187,1724861483322,-646.66511547,0.00021298,2]
[336471188,1724861483331,-500.0,0.00021298,2]
[336471189,1724861483341,-500.0,0.00021298,2]
[336471190,1724861483350,-1111.6,0.00021298,2]
[336471191,1724861483476,-1047.6,0.00021298,2]
[336471192,1724861483486,-500.0,0.00021298,2]
[336471193,1724861483495,-180.91,0.00021298,2]
[336471194,1724861483505,-3000.0,0.000213,2]
[336471195,1724861483513,-3000.0,0.0002131,2]
[336471196,1724861483524,-3000.0,0.0002132,2]
[336471197,1724861483535,-500.0,0.00021323,2]
[336471198,1724861483545,-3000.0,0.0002133,2]
[336471199,1724861483554,-3000.0,0.0002134,2]
[336471200,1724861483564,-3000.0,0.0002135,2]
[336471201,1724861483574,-306.6,0.00021359,2]
[336471202,1724861483585,-533.03,0.00021359,2]
[336471203,1724861483594,-500.0,0.00021359,2]
[336471204,1724861483604,-500.0,0.00021359,2]
[336471205,1724861483615,-500.0,0.00021359,2]
[336471206,1724861483624,-500.0,0.00021359,2]
[336471207,1724861483634,-500.0,0.00021359,2]
[336471208,1724861483643,-500.0,0.00021359,2]
[336471209,1724861483652,-500.0,0.00021359,2]
[336471210,1724861483661,-500.0,0.00021359,2]
[336471211,1724861483671,-975.97,0.00021359,2]
[336471212,1724861483680,-3000.0,0.0002136,2]
[336471213,1724861483690,-3000.0,0.0002137,2]
[336471214,1724861483700,-3000.0,0.0002138,2]
[336471215,1724861483709,-3170.891892,0.0002139,2]
[336471216,1724861483719,-242.24736512,0.00021399,2]
[336471217,1724861483728,-3200.0,0.00021413,2]
[336471218,1724861483738,-465.00776444,0.00021452,2]
[336471219,1724861483748,-600.0,0.00021479,2]
[336471220,1724861483758,-500.0,0.0002149,2]
[336471221,1724861483774,-500.0,0.00021491,2]
[336471222,1724861483783,-4995.28,0.00021491,2]
[336471223,1724861483793,-1834.9,0.00021491,2]
[336471224,1724861483802,-1963.25,0.00021491,2]
[336471225,1724861483816,-2904.94,0.00021491,2]
[336471226,1724861483826,-7393.53,0.00021491,2]
[336471227,1724861483835,-788.02,0.00021491,2]
[336471228,1724861483845,-7405.77,0.00021491,2]
[336471229,1724861483854,-1909.51,0.00021491,2]
[336471230,1724861483863,-2303.49,0.00021491,2]
[336471231,1724861483872,-2897.7,0.00021491,2]
[336471232,1724861483882,-1046.34,0.00021491,2]
[336471233,1724861483892,-1283.62,0.00021491,2]
[336471234,1724861483901,-1871.86,0.00021491,2]
[336471235,1724861483911,-500.0,0.00021492,2]
[336471236,1724861483921,-500.0,0.00021493,2]
[336471237,1724861483931,-7433.18,0.00021501,2]
[336471238,1724861483940,-5212.58,0.00021501,2]
[336471239,1724861483950,-500.0,0.00021501,2]
[336471240,1724861483960,-1640.83,0.00021501,2]
[336471241,1724861483971,-4365.01,0.00021501,2]
[336471242,1724861483980,-12675.43,0.00021501,2]
[336471243,1724861483989,-3008.32,0.00021501,2]
[336471244,1724861483999,-3478.62,0.00021501,2]
[336471245,1724861484010,-500.0,0.00021502,2]
[336471246,1724861484019,-500.0,0.00021502,2]
[336471247,1724861484029,-500.0,0.00021502,2]
[336471248,1724861484038,-500.0,0.00021502,2]
[336471249,1724861484048,-891.13,0.00021502,2]
[336471250,1724861484058,-1064.58,0.00021502,2]
[336471251,1724861484067,-502.03,0.00021502,2]
[336471252,1724861484077,-963.81,0.00021502,2]
[336471253,1724861484086,-522.94241602,0.00021502,2]
[336471254,1724861484096,-500.0,0.00021502,2]
[336471255,1724861484105,-500.0,0.00021502,2]
[336471256,1724861484115,-500.0,0.00021502,2]
[336471257,1724861484126,-500.0,0.00021502,2]
[336471258,1724861484140,-500.0,0.00021502,2]
[336471259,1724861484150,-500.0,0.00021502,2]
[336471260,1724861484160,-538.2,0.00021502,2]
[336471261,1724861484170,-500.0,0.00021502,2]
[336471262,1724861484180,-500.0,0.00021502,2]
[336471263,1724861484190,-1575.71,0.00021502,2]
[336471264,1724861484199,-500.0,0.00021502,2]
[336471265,1724861484209,-500.0,0.00021502,2]
[336471266,1724861484221,-500.0,0.00021502,2]
[336471267,1724861484230,-500.0,0.00021502,2]
[336471268,1724861484239,-2441.06,0.00021502,2]
[336471269,1724861484249,-500.0,0.00021502,2]
[336471270,1724861484259,-500.0,0.00021502,2]
[336471271,1724861484281,-2445.65,0.00021502,2]
[336471272,1724861484291,-3605.34,0.00021502,2]
[336471273,1724861484302,-7804.01,0.00021502,2]
[336471274,1724861484314,-6989.42,0.00021502,2]
[336471275,1724861484323,-3432.15,0.00021502,2]
[336471276,1724861484333,-500.0,0.00021502,2]
[336471277,1724861484343,-500.0,0.00021502,2]
[336471278,1724861484353,-931.19,0.00021502,2]
[336471279,1724861484362,-817.55,0.00021502,2]
[336471280,1724861484373,-500.0,0.00021502,2]
[336471281,1724861484382,-1715.86,0.00021502,2]
[336471282,1724861484392,-500.0,0.00021502,2]
[336471283,1724861484403,-2215.78,0.00021502,2]
[336471284,1724861484414,-991.34,0.00021502,2]
[336471285,1724861484424,-1028.21,0.00021502,2]
[336471286,1724861484435,-1049.04,0.00021502,2]
[336471287,1724861484444,-500.0,0.00021502,2]
[336471288,1724861484454,-500.0,0.00021502,2]
[336471289,1724861484464,-500.0,0.00021502,2]
[336471290,1724861484474,-1574.19,0.00021502,2]
[336471291,1724861484484,-1419.19,0.00021502,2]
[336471292,1724861484493,-501.26623986,0.00021502,2]
[336471293,1724861484502,-500.0,0.00021502,2]
[336471294,1724861484515,-3455.34,0.00021502,2]
[336471295,1724861484524,-1220.18,0.00021502,2]
[336471296,1724861484534,-787.68,0.00021502,2]
[336471297,1724861484544,-1574.41,0.00021502,2]
[336471298,1724861484553,-500.0,0.00021502,2]
[336471299,1724861484565,-1161.17,0.00021502,2]
[336471300,1724861484574,-1086.03,0.00021502,2]
[336471301,1724861484583,-2104.49,0.00021502,2]
[336471302,1724861484592,-500.0,0.00021502,2]
[336471303,1724861484601,-2447.77,0.00021502,2]
[336471304,1724861484611,-2050.11,0.00021502,2]
[336471305,1724861484620,-500.0,0.00021502,2]
[336471306,1724861484629,-1938.39,0.00021502,2]
[336471307,1724861484638,-500.0,0.00021502,2]
[336471308,1724861484648,-500.0,0.00021502,2]
[336471309,1724861484658,-178.48709143,0.00021502,2]
[336471310,1724861484668,-3053.04,0.00021502,2]
[336471311,1724861484677,-500.0,0.00021502,2]
[336471312,1724861484687,-500.0,0.00021502,2]
[336471313,1724861484696,-500.0,0.00021502,2]
[336471314,1724861484706,-500.0,0.00021502,2]
[336471315,1724861484716,-638.78051971,0.00021502,2]
[336471316,1724861484726,-2059.73,0.00021502,2]
[336471317,1724861484735,-500.0,0.00021502,2]
[336471318,1724861484744,-1762.74,0.00021502,2]
[336471319,1724861484754,-500.0,0.00021502,2]
[336471320,1724861484772,-1881.79,0.00021503,2]
[336471321,1724861484783,-4789.79,0.00021503,2]
[336471322,1724861484794,-2011.7,0.00021503,2]
[336471323,1724861484804,-1624.46,0.00021503,2]
[336471324,1724861484814,-500.0,0.00021503,2]
[336471325,1724861484824,-1132.43,0.00021503,2]
[336471326,1724861484834,-500.0,0.00021503,2]
[336471327,1724861484843,-562.54331402,0.00021543,2]
[336471328,1724861484853,-500.0,0.00021543,2]
[336471329,1724861484863,-500.0,0.00021543,2]
[336471330,1724861484872,-1847.91,0.00021543,2]
[336471331,1724861484882,-1019.59,0.00021543,2]
[336471332,1724861484891,-1247.82,0.00021543,2]
[336471333,1724861484900,-500.0,0.00021543,2]
[336471334,1724861484910,-1867.86,0.00021543,2]
[336471335,1724861484920,-2205.0,0.00021543,2]
[336471336,1724861484930,-500.0,0.00021543,2]
[336471337,1724861484940,-1306.88,0.00021543,2]
[336471338,1724861484950,-500.0,0.00021543,2]
[336471339,1724861484960,-1564.33,0.00021543,2]
[336471340,1724861484970,-500.0,0.00021543,2]
[336471341,1724861484980,-500.0,0.00021543,2]
[336471342,1724861484991,-500.0,0.00021543,2]
[336471343,1724861485001,-1003.11,0.00021543,2]
[336471344,1724861485016,-500.0,0.00021543,2]
[336471345,1724861485027,-647.11,0.00021543,2]
[336471346,1724861485038,-1403.9,0.00021543,2]
[336471347,1724861485049,-500.0,0.00021543,2]
[336471348,1724861485059,-500.0,0.00021543,2]
[336471349,1724861485069,-536.8512464,0.00021571,2]
[336471350,1724861485079,-500.0,0.00021571,2]
[336471351,1724861485090,-500.0,0.00021571,2]
[336471352,1724861485100,-500.0,0.00021571,2]
[336471353,1724861485109,-1844.52,0.00021571,2]
[336471354,1724861485120,-500.0,0.00021571,2]
[336471355,1724861485130,-1669.64,0.00021571,2]
[336471356,1724861485140,-500.0,0.00021571,2]
[336471357,1724861485151,-500.0,0.00021571,2]
[336471358,1724861485162,-308.87214273,0.00021571,2]
[336471359,1724861485172,-830.36,0.00021571,2]
[336471360,1724861485182,-500.0,0.00021571,2]
[336471361,1724861485192,-500.0,0.00021571,2]
[336471362,1724861485202,-855.87,0.00021571,2]
[336471363,1724861485212,-361.60662439,0.00021571,2]
[336471364,1724861485222,-500.0,0.00021571,2]
[336471365,1724861485231,-500.0,0.00021571,2]
[336471366,1724861485243,-157.93,0.00021571,2]
[336471367,1724861485253,-1514.19,0.00021571,2]
[336471368,1724861485268,-1583.58,0.00021571,2]
[336471369,1724861485278,-500.0,0.00021571,2]
[336471370,1724861485288,-500.0,0.00021571,2]
[336471371,1724861485299,-1033.16,0.00021571,2]
[336471372,1724861485308,-500.0,0.00021571,2]
[336471373,1724861485317,-218.26,0.00021571,2]
[336471374,1724861485327,-500.0,0.00021571,2]
[336471375,1724861485337,-500.0,0.00021571,2]
[336471376,1724861485347,-1188.18,0.00021571,2]
[336471377,1724861485356,-1477.27,0.00021571,2]
[336471378,1724861485366,-150.27940324,0.00021571,2]
[336471379,1724861485375,-500.0,0.00021571,2]
[336471380,1724861485385,-500.0,0.00021571,2]
[336471381,1724861485394,-1202.37,0.00021571,2]
[336471382,1724861485404,-500.0,0.00021572,2]
[336471383,1724861485414,-500.0,0.00021572,2]
[336471384,1724861485424,-500.0,0.00021572,2]
[336471385,1724861485435,-500.0,0.00021572,2]
[336471386,1724861485446,-153.05342846,0.00021572,2]
[336471387,1724861485456,-500.0,0.00021572,2]
[336471388,1724861485466,-500.0,0.00021572,2]
[336471389,1724861485475,-582.32,0.00021572,2]
[336471390,1724861485485,-823.28,0.00021572,2]
[336471391,1724861485496,-500.0,0.00021572,2]
[336471392,1724861485505,-500.0,0.00021572,2]
[336471393,1724861485520,-1111.6,0.00021572,2]
[336471394,1724861485530,-1047.6,0.00021572,2]
[336471395,1724861485539,-268.47662912,0.00021572,2]
[336471396,1724861485555,-8466.31137817,0.00021609,2]
[336471397,1724861485564,-500.0,0.00021633,2]
[336471398,1724861485574,-500.0,0.00021633,2]
[336471399,1724861485583,-500.0,0.00021633,2]
[336471400,1724861485592,-500.0,0.00021633,2]
[336471401,1724861485602,-500.0,0.00021633,2]
[336471402,1724861485611,-500.0,0.00021633,2]
[336471403,1724861485621,-411.16741703,0.00021633,2]
[336471404,1724861485631,-500.0,0.00021633,2]
[336471405,1724861485641,-975.97,0.00021633,2]
[336471406,1724861485652,-1000.0,0.00021654,2]
[336471407,1724861485661,-1000.0,0.00021684,2]
[336471408,1724861485672,-1000.0,0.00021685,2]
[336471409,1724861485681,-1000.0,0.00021695,2]
[336471410,1724861485691,-1000.0,0.00021733,2]
[336471411,1724861485701,-1000.0,0.00021736,2]
[336471412,1724861485711,-1000.0,0.00021743,2]
[336471413,1724861485721,-1000.0,0.00021759,2]
[336471414,1724861485731,-500.0,0.00021764,2]
[336471415,1724861485740,-500.0,0.00021765,2]
[336471416,1724861485751,-4995.28,0.00021765,2]
[336471417,1724861485765,-1834.9,0.00021765,2]
[336471418,1724861485776,-1963.25,0.00021765,2]
[336471419,1724861485789,-2904.94,0.00021765,2]
[336471420,1724861485799,-7393.53,0.00021765,2]
[336471421,1724861485808,-788.02,0.00021765,2]
[336471422,1724861485817,-7405.77,0.00021765,2]
[336471423,1724861485826,-1909.51,0.00021765,2]
[336471424,1724861485835,-2303.49,0.00021765,2]
[336471425,1724861485845,-2897.7,0.00021765,2]
[336471426,1724861485855,-1046.34,0.00021765,2]
[336471427,1724861485865,-1283.62,0.00021765,2]
[336471428,1724861485877,-1871.86,0.00021765,2]
[336471429,1724861485886,-70900.70281658,0.00021769,2]
[336471430,1724861485896,-1000.0,0.00021769,2]
[336471431,1724861485906,-1000.0,0.00021774,2]
[336471432,1724861485915,-1000.0,0.00021774,2]
[336471433,1724861485925,-7433.18,0.00021775,2]
[336471434,1724861485934,-5212.58,0.00021775,2]
[336471435,1724861485944,-582.31,0.00021775,2]
[336471436,1724861485955,-1640.83,0.00021775,2]
[336471437,1724861485966,-4365.01,0.00021775,2]
[336471438,1724861485976,-12675.43,0.00021775,2]
[336471439,1724861485985,-3008.32,0.00021775,2]
[336471440,1724861485996,-3478.62,0.00021775,2]
[336471441,1724861486007,-500.0,0.00021776,2]
[336471442,1724861486024,-500.0,0.00021776,2]
[336471443,1724861486034,-500.0,0.00021776,2]
[336471444,1724861486044,-500.0,0.00021776,2]
[336471445,1724861486054,-891.13,0.00021776,2]
[336471446,1724861486064,-1064.58,0.00021776,2]
[336471447,1724861486074,-502.03,0.00021776,2]
[336471448,1724861486083,-963.81,0.00021776,2]
[336471449,1724861486093,-500.0,0.00021776,2]
[336471450,1724861486102,-305.48345209,0.00021776,2]
[336471451,1724861486112,-159.89,0.00021776,2]
[336471452,1724861486120,-500.0,0.00021776,2]
[336471453,1724861486132,-500.0,0.00021776,2]
[336471454,1724861486143,-500.0,0.00021776,2]
[336471455,1724861486152,-500.0,0.00021776,2]
[336471456,1724861486162,-1575.71,0.00021776,2]
[336471457,1724861486172,-500.0,0.00021776,2]
[336471458,1724861486183,-500.0,0.00021776,2]
[336471459,1724861486192,-634.61,0.00021776,2]
[336471460,1724861486202,-500.0,0.00021776,2]
[336471461,1724861486214,-2441.06,0.00021776,2]
[336471462,1724861486224,-500.0,0.00021776,2]
[336471463,1724861486234,-500.0,0.00021776,2]
[336471464,1724861486243,-2445.65,0.00021776,2]
[336471465,1724861486253,-3605.34,0.00021776,2]
[336471466,1724861486265,-7804.01,0.00021776,2]
[336471467,1724861486275,-6989.42,0.00021776,2]
[336471468,1724861486286,-3432.15,0.00021776,2]
[336471469,1724861486296,-360.84580243,0.00021776,2]
[336471470,1724861486307,-500.0,0.00021776,2]
[336471471,1724861486317,-931.19,0.00021776,2]
[336471472,1724861486328,-817.55,0.00021776,2]
[336471473,1724861486339,-500.0,0.00021776,2]
[336471474,1724861486348,-1715.86,0.00021776,2]
[336471475,1724861486359,-247.19181661,0.00021776,2]
[336471476,1724861486370,-2215.78,0.00021776,2]
[336471477,1724861486381,-991.34,0.00021776,2]
[336471478,1724861486391,-1028.21,0.00021776,2]
[336471479,1724861486401,-1049.04,0.00021776,2]
[336471480,1724861486413,-500.0,0.00021776,2]
[336471481,1724861486422,-500.0,0.00021776,2]
[336471482,1724861486432,-1574.19,0.00021776,2]
[336471483,1724861486442,-1419.19,0.00021776,2]
[336471484,1724861486452,-500.0,0.00021776,2]
[336471485,1724861486463,-3455.34,0.00021776,2]
[336471486,1724861486473,-1220.18,0.00021776,2]
[336471487,1724861486483,-787.68,0.00021776,2]
[336471488,1724861486492,-1574.41,0.00021776,2]
[336471489,1724861486501,-435.28,0.00021776,2]
[336471490,1724861486514,-1161.17,0.00021776,2]
[336471491,1724861486524,-1086.03,0.00021776,2]
[336471492,1724861486534,-2104.49,0.00021776,2]
[336471493,1724861486543,-500.0,0.00021776,2]
[336471494,1724861486553,-2447.77,0.00021776,2]
[336471495,1724861486563,-2050.11,0.00021776,2]
[336471496,1724861486572,-500.0,0.00021776,2]
[336471497,1724861486584,-1938.39,0.00021776,2]
[336471498,1724861486593,-500.0,0.00021776,2]
[336471499,1724861486603,-500.0,0.00021776,2]
[336471500,1724861486613,-3053.04,0.00021776,2]
[336471501,1724861486624,-500.0,0.00021776,2]
[336471502,1724861486634,-153.67053309,0.00021776,2]
[336471503,1724861486643,-500.0,0.00021776,2]
[336471504,1724861486653,-500.0,0.00021776,2]
[336471505,1724861486663,-2059.73,0.00021776,2]
[336471506,1724861486672,-500.0,0.00021776,2]
[336471507,1724861486682,-1762.74,0.00021776,2]
[336471508,1724861486692,-500.0,0.00021776,2]
[336471509,1724861486701,-1881.79,0.00021777,2]
[336471510,1724861486712,-4789.79,0.00021777,2]
[336471511,1724861486722,-2011.7,0.00021777,2]
[336471512,1724861486732,-1624.46,0.00021777,2]
[336471513,1724861486742,-545.0385696,0.00021777,2]
[336471514,1724861486753,-1132.43,0.00021777,2]
[336471515,1724861486765,-500.0,0.00021777,2]
[336471516,1724861486775,-2464.96407512,0.00021806,2]
[336471517,1724861486784,-1000.0,0.00021812,2]
[336471518,1724861486794,-1000.0,0.00021814,2]
[336471519,1724861486934,-500.0,0.00021817,2]
[336471520,1724861486945,-520.78,0.00021817,2]
[336471521,1724861486957,-1847.91,0.00021817,2]
[336471522,1724861486966,-1019.59,0.00021817,2]
[336471523,1724861486975,-1247.82,0.00021817,2]
[336471524,1724861486984,-454.9748105,0.00021817,2]
[336471525,1724861486994,-1867.86,0.00021817,2]
[336471526,1724861487004,-2205.0,0.00021817,2]
[336471527,1724861487018,-500.0,0.00021817,2]
[336471528,1724861487027,-1306.88,0.00021817,2]
[336471529,1724861487037,-500.0,0.00021817,2]
[336471530,1724861487048,-1564.33,0.00021817,2]
[336471531,1724861487058,-500.0,0.00021817,2]
[336471532,1724861487068,-500.0,0.00021817,2]
[336471533,1724861487078,-500.0,0.00021817,2]
[336471534,1724861487087,-1003.11,0.00021817,2]
[336471535,1724861487096,-473.32360559,0.00021817,2]
[336471536,1724861487106,-1403.9,0.00021817,2]
[336471537,1724861487116,-500.0,0.00021817,2]
[336471538,1724861487127,-500.0,0.00021817,2]
[336471539,1724861487136,-1000.0,0.00021818,2]
[336471540,1724861487145,-805.80992153,0.00021833,2]
[336471541,1724861487157,-1000.0,0.00021844,2]
[336471542,1724861487167,-500.0,0.00021845,2]
[336471543,1724861487177,-327.46138527,0.00021845,2]
[336471544,1724861487187,-500.0,0.00021845,2]
[336471545,1724861487197,-1844.52,0.00021845,2]
[336471546,1724861487206,-500.0,0.00021845,2]
[336471547,1724861487215,-1669.64,0.00021845,2]
[336471548,1724861487226,-500.0,0.00021845,2]
[336471549,1724861487237,-500.0,0.00021845,2]
[336471550,1724861487247,-830.36,0.00021845,2]
[336471551,1724861487256,-500.0,0.00021845,2]
[336471552,1724861487270,-500.0,0.00021845,2]
[336471553,1724861487280,-855.87,0.00021845,2]
[336471554,1724861487289,-542.37,0.00021845,2]
[336471555,1724861487298,-471.23140881,0.00021845,2]
[336471556,1724861487307,-1514.19,0.00021845,2]
[336471557,1724861487316,-1583.58,0.00021845,2]
[336471558,1724861487325,-500.0,0.00021845,2]
[336471559,1724861487335,-500.0,0.00021845,2]
[336471560,1724861487347,-1033.16,0.00021845,2]
[336471561,1724861487357,-500.0,0.00021845,2]
[336471562,1724861487367,-500.0,0.00021845,2]
[336471563,1724861487378,-500.0,0.00021845,2]
[336471564,1724861487388,-1188.18,0.00021845,2]
[336471565,1724861487397,-1477.27,0.00021845,2]
[336471566,1724861487407,-636.82129065,0.00021845,2]
[336471567,1724861487417,-1202.37,0.00021845,2]
[336471568,1724861487426,-500.0,0.00021846,2]
[336471569,1724861487436,-500.0,0.00021846,2]
[336471570,1724861487445,-500.0,0.00021846,2]
[336471571,1724861487454,-500.0,0.00021846,2]
[336471572,1724861487464,-500.0,0.00021846,2]
[336471573,1724861487473,-240.22986178,0.00021846,2]
[336471574,1724861487483,-823.28,0.00021846,2]
[336471575,1724861487492,-278.19,0.00021846,2]
[336471576,1724861487502,-500.0,0.00021846,2]
[336471577,1724861487513,-1111.6,0.00021846,2]
[336471578,1724861487527,-1047.6,0.00021846,2]
[336471579,1724861487536,-1000.0,0.00021859,2]
[336471580,1724861487546,-1000.0,0.00021894,2]
[336471581,1724861487556,-1000.0,0.00021898,2]
[336471582,1724861487565,-1000.0,0.00021898,2]
[336471583,1724861487574,-512.0,0.000219,2]
[336471584,1724861487584,-500.0,0.00021907,2]
[336471585,1724861487593,-400.89,0.00021907,2]
[336471586,1724861487603,-500.0,0.00021907,2]
[336471587,1724861487613,-169.94206752,0.00021907,2]
[336471588,1724861487622,-500.0,0.00021907,2]
[336471589,1724861487632,-1000.0,0.00021907,2]
[336471590,1724861487642,-500.0,0.00021907,2]
[336471591,1724861487652,-408.63,0.00021907,2]
[336471592,1724861487662,-975.97,0.00021907,2]
[336471593,1724861487671,-1000.0,0.00021913,2]
[336471594,1724861487682,-500.0,0.00021917,2]
[336471595,1724861487692,-500.0,0.00021917,2]
[336471596,1724861487703,-500.0,0.00021917,2]
[336471597,1724861487712,-500.0,0.00021917,2]
[336471598,1724861487721,-500.0,0.00021917,2]
[336471599,1724861487732,-500.0,0.00021917,2]
[336471600,1724861487742,-616.92298623,0.00021917,2]
[336471601,1724861487751,-520.000095,0.00021918,2]
[336471602,1724861487761,-520.000095,0.00021918,2]
[336471603,1724861487774,-520.000095,0.00021918,2]
[336471604,1724861487783,-520.000095,0.00021918,2]
[336471605,1724861487793,-520.000095,0.00021918,2]
[336471606,1724861487802,-520.000095,0.00021918,2]
[336471607,1724861487812,-520.000095,0.00021918,2]
[336471608,1724861487821,-520.000095,0.00021918,2]
[336471609,1724861487830,-520.000095,0.00021918,2]
[336471610,1724861487840,-520.000095,0.00021918,2]
[336471611,1724861487849,-520.000095,0.00021918,2]
[336471612,1724861487860,-520.000095,0.00021918,2]
[336471613,1724861487870,-520.000095,0.00021918,2]
[336471614,1724861487879,-520.000095,0.00021918,2]
[336471615,1724861487889,-520.000095,0.00021918,2]
[336471616,1724861487899,-520.000095,0.00021918,2]
[336471617,1724861487910,-520.000095,0.00021918,2]
[336471618,1724861487919,-520.000095,0.00021918,2]
[336471619,1724861487928,-520.000095,0.00021918,2]
[336471620,1724861487938,-520.000086,0.00021918,2]
[336471621,1724861487948,-160.0,0.00021918,2]
[336471622,1724861487957,-160.0853114,0.00021918,2]
[336471623,1724861487967,-160.0,0.00021918,2]
[336471624,1724861487976,-183.17317691,0.00021918,2]
[336471625,1724861487986,-160.0,0.00021918,2]
[336471626,1724861487996,-238.27303755,0.00021918,2]
[336471627,1724861488005,-154.65203293,0.00021999,2]
[336471628,1724861488017,-154.65203293,0.00021999,2]
[336471629,1724861488027,-1000.0,0.00022,14]
[336471630,1724861488036,-555.89874761,0.00022,2]
[336471631,1724861488046,-165.0,0.00022,2]
[336471632,1724861488055,-500.0,0.00022038,5]
[336471633,1724861488066,-500.0,0.00022039,5]
[336471634,1724861488076,-4995.28,0.00022039,5]
[336471635,1724861488086,-1834.9,0.00022039,5]
[336471636,1724861488096,-1963.25,0.00022039,5]
[336471637,1724861488105,-2904.94,0.00022039,5]
[336471638,1724861488115,-7393.53,0.00022039,5]
[336471639,1724861488126,-788.02,0.00022039,5]
[336471640,1724861488140,-7405.77,0.00022039,5]
[336471641,1724861488150,-1909.51,0.00022039,5]
[336471642,1724861488160,-2303.49,0.00022039,5]
[336471643,1724861488172,-2897.7,0.00022039,5]
[336471644,1724861488183,-1046.34,0.00022039,5]
[336471645,1724861488193,-1283.62,0.00022039,5]
[336471646,1724861488203,-1871.86,0.00022039,5]
[336471647,1724861488214,-7433.18,0.00022049,5]
[336471648,1724861488224,-5212.58,0.00022049,5]
[336471649,1724861488233,-1640.83,0.00022049,5]
[336471650,1724861488244,-4365.01,0.00022049,5]
[336471651,1724861488253,-12675.43,0.00022049,5]
[336471652,1724861488267,-3008.32,0.00022049,5]
[336471653,1724861488278,-3478.62,0.00022049,5]
[336471654,1724861488288,-500.0,0.0002205,5]
[336471655,1724861488297,-500.0,0.0002205,5]
[336471656,1724861488307,-500.0,0.0002205,5]
[336471657,1724861488318,-891.13,0.0002205,5]
[336471658,1724861488329,-1064.58,0.0002205,5]
[336471659,1724861488339,-502.03,0.0002205,5]
[336471660,1724861488349,-963.81,0.0002205,5]
[336471661,1724861488359,-639.05226129,0.0002205,5]
[336471662,1724861488369,-500.0,0.0002205,5]
[336471663,1724861488380,-500.0,0.0002205,5]
[336471664,1724861488390,-500.0,0.0002205,5]
[336471665,1724861488400,-1575.71,0.0002205,5]